bitfinex/quotes_SOLUSD_20250216
["timestamp","ask_amount","ask_price","bid_price","bid_amount"]
[1739664846740,0.0001,194.72,194.71,325.78631818]
[1739664846945,0.0001,194.72,194.71,324.78631818]
[1739664852740,0.0001,194.72,194.71,189.28631818]
[1739664855638,0.0001,194.72,194.71,189.34931818]
[1739664858661,0.0001,194.72,194.71,190.34931818]
[1739664859358,0.0001,194.72,194.71,189.34931818]
[1739664860457,0.0001,194.72,194.71,190.34931818]
[1739664863173,0.0001,194.72,194.71,189.34931818]
[1739664870867,0.0001,194.72,194.71,108.02931818]
[1739664873556,0.0001,194.73,194.72,21.53051818]
[1739664876474,0.0001,194.73,194.72,102.83051818]
[1739664876660,0.0001,194.74,194.73,21.53051818]
[1739664876978,0.0001,194.74,194.73,102.83051818]
[1739664879587,0.0001,194.74,194.73,107.96581818]
[1739664879761,7.7697,194.83,194.73,108.96581818]
[1739664879970,7.7697,194.83,194.75,41.53051818]
[1739664880166,7.7697,194.83,194.79,20.0]
[1739664880371,7.7697,194.83,194.8,21.53051818]
[1739664881590,7.7697,194.83,194.81,5.1332]
[1739664890389,8.11866965,194.82,194.76,102.25446965]
[1739664890886,8.11866965,194.82,194.8,20.0]
[1739664891580,15.88836965,194.83,194.8,20.0]
[1739664891985,7.7697,194.83,194.8,20.0]
[1739664892590,7.7997,194.83,194.8,20.0]
[1739664893082,7.7997,194.83,194.8,25.1334]
[1739664894992,0.03,194.83,194.81,13.41184853]
[1739664896969,0.03,194.83,194.81,18.54484853]
[1739664903595,0.03,194.83,194.8,20.0]
[1739664904198,0.03,194.83,194.8,25.1333]
[1739664910907,0.03,194.83,194.81,13.41184853]
[1739664913093,0.03,194.83,194.81,18.54484853]
[1739664913989,0.03,194.83,194.81,13.41184853]
[1739664914415,0.03,194.83,194.8,20.0]
[1739664919635,8.14866965,194.83,194.79,20.0]
[1739664920624,8.11866965,194.8,194.76,0.063]
[1739664922142,7.61866965,194.8,194.76,0.063]
[1739664922507,7.61866965,194.8,194.77,20.0]
[1739664922913,8.11866965,194.79,194.76,0.063]
[1739664923940,14.59276965,194.83,194.77,8.11866965]
[1739664924111,0.03,194.83,194.78,21.53051818]
[1739664925149,0.03,194.83,194.79,5.1337]
[1739664926924,0.03,194.83,194.79,13.25236965]
[1739664927130,0.03,194.83,194.8,21.53051818]
[1739664928446,0.03,194.83,194.8,13.41184853]
[1739664928945,0.03,194.83,194.8,18.54524853]
[1739664929847,0.03,194.83,194.82,20.0]
[1739664931056,0.03,194.83,194.82,25.1329]
[1739664932448,0.03,194.83,194.82,20.0]
[1739664937052,0.03,194.83,194.82,25.1329]
[1739664937756,0.03,194.83,194.82,20.0]
[1739664943854,0.03,194.83,194.82,38.54474853]
[1739664944154,0.03,194.83,194.82,46.66341818]
[1739664959185,0.0001,194.83,194.82,129.96341818]
[1739664959488,0.0001,194.83,194.82,131.47551818]
[1739664960479,0.0001,194.83,194.82,212.77551818]
[1739664962796,0.0001,194.83,194.82,242.77551818]
[1739664962962,0.0001,194.83,194.82,378.27551818]
[1739664964584,0.0001,194.83,194.82,378.33851818]
[1739664964965,0.0001,194.83,194.82,408.33851818]
[1739664965193,0.0001,194.83,194.82,378.33851818]
[1739664965378,0.03,194.91,194.87,21.0]
[1739664965686,0.03,194.91,194.9,41.53051818]
[1739664967365,0.03,194.91,194.9,46.66131818]
[1739664969384,0.03,194.91,194.9,80.13599678]
[1739664969886,0.03,194.92,194.9,80.13599678]
[1739664970099,0.0001,194.92,194.91,22.53051818]
[1739664970290,0.0001,194.92,194.91,270.33051818]
[1739664970597,1.5328,195.03,194.98,20.0]
[1739664970772,1.5328,195.03,194.99,8.11866965]
[1739664971595,1.5328,195.03,194.98,28.11866965]
[1739664971980,1.5328,195.03,194.99,8.11866965]
[1739664972690,0.03,195.03,195.0,8.11866965]
[1739664973375,0.03,195.03,195.01,21.53051818]
[1739664974088,0.03,195.03,195.02,8.11866965]
[1739664975398,0.03,195.03,195.02,26.65811818]
[1739664982706,1.5328,195.11,195.06,20.0]
[1739664982885,0.03,195.11,195.08,8.11866965]
[1739664983703,0.03,195.11,195.08,13.24446965]
[1739664983888,0.03,195.11,195.09,13.41184853]
[1739664984285,0.03,195.11,195.09,21.53051818]
[1739664987009,0.03,195.11,195.1,21.53051818]
[1739664987215,0.03,195.11,195.1,56.00519678]
[1739664988510,0.03,195.23,195.17,8.11866965]
[1739664988889,8.14866965,195.23,195.17,8.11866965]
[1739664990797,13.27086965,195.23,195.16,8.11866965]
[1739664992087,13.27086965,195.23,195.15,13.41184853]
[1739664992088,5.1522,195.23,195.17,8.11866965]
[1739664992288,13.27086965,195.23,195.16,8.11866965]
[1739664992510,8.11866965,195.21,195.15,21.53051818]
[1739664993213,8.11866965,195.22,195.16,8.11866965]
[1739664994137,5.1226,195.21,195.16,8.11866965]
[1739664997823,8.14866965,195.23,195.17,8.11866965]
[1739664998029,5.1523,195.23,195.18,8.11866965]
[1739664998737,13.27096965,195.23,195.17,8.11866965]
[1739664998915,8.11866965,195.22,195.15,21.53051818]
[1739664999115,8.11866965,195.22,195.15,8.11866965]
[1739665000002,5.1226,195.21,195.15,8.11866965]
[1739665001311,5.1226,195.21,195.16,8.11866965]
[1739665002031,5.1526,195.21,195.16,8.11866965]
[1739665002330,0.03,195.21,195.16,8.11866965]
[1739665002529,0.03,195.21,195.2,8.11866965]
[1739665002735,0.03,195.21,195.19,8.11866965]
[1739665003754,0.03,195.21,195.18,8.11866965]
[1739665005136,0.03,195.21,195.2,8.11866965]
[1739665005523,0.03,195.21,195.2,21.53051818]
[1739665006338,0.03,195.21,195.2,26.65341818]
[1739665007315,0.03,195.21,195.2,21.53051818]
[1739665008628,8.11866965,195.29,195.2,21.53051818]
[1739665008949,8.11866965,195.29,195.22,8.11866965]
[1739665009519,8.11866965,195.28,195.22,8.11866965]
[1739665010247,8.11866965,195.29,195.22,8.11866965]
[1739665010831,5.1208,195.28,195.22,8.11866965]
[1739665011848,3.6208,195.28,195.22,8.11866965]
[1739665012144,8.11866965,195.29,195.22,8.11866965]
[1739665012928,5.1208,195.28,195.22,8.11866965]
[1739665014352,8.11866965,195.28,195.22,8.11866965]
[1739665016329,8.11866965,195.28,195.22,13.41184853]
[1739665016535,5.1211,195.27,195.22,13.41184853]
[1739665018155,5.1211,195.27,195.22,8.11866965]
[1739665019553,5.1211,195.27,195.22,8.11866965]
[1739665020835,5.1211,195.27,195.22,13.41184853]
[1739665021042,5.1205,195.3,195.26,21.53051818]
[1739665021240,0.44,195.32,195.26,21.53051818]
[1739665021550,5.12,195.31,195.26,21.53051818]
[1739665023757,13.23866965,195.31,195.24,28.11866965]
[1739665023967,8.11866965,195.28,195.21,8.11866965]
[1739665024143,8.11866965,195.27,195.21,8.11866965]
[1739665024345,8.11866965,195.26,195.2,8.11866965]
[1739665024753,5.5598,195.32,195.26,13.41184853]
[1739665025050,0.44,195.32,195.27,8.11866965]
[1739665027361,0.44,195.32,195.27,13.23966965]
[1739665027653,0.44,195.32,195.29,8.11866965]
[1739665027839,0.44,195.32,195.3,8.11866965]
[1739665028037,0.47,195.32,195.3,8.11866965]
[1739665029259,0.47,195.32,195.31,21.53051818]
[1739665029759,8.11866965,195.37,195.31,21.53051818]
[1739665030761,8.11866965,195.36,195.3,8.11866965]
[1739665033281,8.11866965,195.37,195.31,21.53051818]
[1739665034174,8.11866965,195.38,195.32,8.11866965]
[1739665034696,8.11866965,195.37,195.31,8.11866965]
[1739665035193,8.11866965,195.39,195.33,8.11866965]
[1739665035355,8.11866965,195.4,195.33,8.11866965]
[1739665035782,8.11866965,195.4,195.34,13.41184853]
[1739665036286,13.23656965,195.39,195.33,8.11866965]
[1739665036485,13.23656965,195.39,195.34,13.41184853]
[1739665037390,5.1179,195.39,195.34,13.41184853]
[1739665040194,13.23656965,195.39,195.33,8.11866965]
[1739665041577,8.11866965,195.38,195.31,8.11866965]
[1739665042290,5.1184,195.37,195.31,8.11866965]
[1739665042706,5.1184,195.37,195.32,13.41184853]
[1739665043194,5.1184,195.37,195.32,8.11866965]
[1739665043364,5.1184,195.37,195.31,8.11866965]
[1739665043563,5.1184,195.37,195.32,13.41184853]
[1739665043771,5.1184,195.37,195.32,21.53051818]
[1739665048193,5.1182,195.38,195.34,21.53051818]
[1739665048487,5.1171,195.42,195.37,8.11866965]
[1739665050471,13.23556965,195.43,195.37,8.11866965]
[1739665051593,8.11866965,195.42,195.35,8.11866965]
[1739665051789,8.11866965,195.41,195.35,8.11866965]
[1739665052590,8.14866965,195.42,195.35,8.11866965]
[1739665052995,8.11866965,195.4,195.34,8.18166965]
[1739665053206,8.11866965,195.39,195.34,0.063]
[1739665053406,8.11866965,195.38,195.34,0.063]
[1739665053702,8.11866965,195.39,195.34,0.063]
[1739665053883,8.11866965,195.38,195.34,0.063]
[1739665054810,8.11866965,195.38,195.15,12.7941]
[1739665054811,1.0,195.16,195.15,12.7941]
[1739665055116,1.0,195.16,195.02,48.57324074]
[1739665055117,6.18290774,195.07,195.02,48.57324074]
[1739665055280,3.0,195.06,195.02,48.57324074]
[1739665055597,1.0,195.01,194.92,113.40056174]
[1739665055980,42.59334825,195.01,194.92,113.40056174]
[1739665056175,72.59334825,195.01,195.0,33.87776431]
[1739665056495,72.59334825,195.01,195.0,6.431e-05]
[1739665056699,1.0,194.98,194.92,8.18166965]
[1739665056884,1.0,194.97,194.92,0.063]
[1739665057082,1.0,194.97,194.94,8.11866965]
[1739665057286,1.0,194.96,194.92,8.18166965]
[1739665057588,1.0,194.96,194.93,13.41184853]
[1739665058102,1.0,194.96,194.92,13.47484853]
[1739665058612,1.0,194.94,194.92,0.063]
[1739665058814,1.0,194.97,194.94,20.0]
[1739665058993,8.9791716,194.97,194.95,13.41184853]
[1739665059198,7.9791716,194.97,194.95,13.41184853]
[1739665059507,7.9791716,194.97,194.92,33.30588542]
[1739665059702,1.0,195.01,194.92,33.30588542]
[1739665059905,1.0,194.99,194.97,12.63140319]
[1739665060118,1.0,194.99,194.95,12.63140319]
[1739665060325,1.0,194.99,194.97,13.41184853]
[1739665062199,1.0,195.01,194.97,13.41184853]
[1739665062725,1.0,195.0,194.97,13.41184853]
[1739665063611,1.0,194.99,194.97,13.41184853]
[1739665064416,1.0,194.99,194.98,81.2]
[1739665064602,1.0,194.99,194.98,85.42]
[1739665065320,1.0,194.99,194.98,43.15636325]
[1739665065519,7.9791716,195.01,194.97,13.47484853]
[1739665065711,7.9791716,195.01,194.99,13.41184853]
[1739665066015,1.0,195.01,194.99,13.41184853]
[1739665066201,1.0,195.01,194.97,12.69440319]
[1739665066593,1.0,195.01,194.98,13.41184853]
[1739665066796,7.9791716,195.03,195.01,13.41184853]
[1739665067121,7.9791716,195.03,195.02,26.04325172]
[1739665067424,8.9791716,195.05,195.02,12.63140319]
[1739665067627,8.9791716,195.05,195.03,13.41184853]
[1739665068422,8.9791716,195.05,195.02,20.0]
[1739665068638,8.9791716,195.05,195.02,32.63140319]
[1739665069230,1.0,195.04,195.02,32.63140319]
[1739665070631,1.0,195.08,195.03,26.04325172]
[1739665070807,1.0,195.1,195.09,20.0]
[1739665071339,1.0,195.09,195.07,17.61184853]
[1739665071526,1.0,195.09,195.07,13.41184853]
[1739665074207,1.0,195.09,195.07,18.53814853]
[1739665077627,1.03,195.09,195.07,18.53814853]
[1739665078132,1.03,195.09,195.07,31.16955172]
[1739665078334,0.03,195.09,195.08,26.04325172]
[1739665078629,1.0,195.15,195.09,13.41184853]
[1739665078855,1.0,195.13,195.11,12.63140319]
[1739665079014,1.0,195.13,195.11,13.41184853]
[1739665079221,1.0,195.13,195.09,12.63140319]
[1739665079824,1.0,195.12,195.1,17.75690319]
[1739665080020,1.0,195.12,195.1,5.1255]
[1739665080816,1.0,195.15,195.11,13.41184853]
[1739665081019,1.0,195.13,195.11,13.41184853]
[1739665081837,1.0,195.13,195.11,18.53694853]
[1739665082041,1.0,195.12,195.09,5.1255]
[1739665088762,1.0,195.12,195.1,13.41184853]
[1739665088949,1.0,195.12,195.1,31.16855172]
[1739665089253,1.03,195.12,195.1,31.16855172]
[1739665089851,0.03,195.12,195.11,12.63140319]
[1739665091163,0.03,195.12,195.11,26.04325172]
[1739665091339,0.03,195.12,195.11,13.41184853]
[1739665092036,0.03,195.12,195.11,18.53714853]
[1739665094060,1.03,195.12,195.09,17.75710319]
[1739665094245,1.0,195.11,195.09,5.1257]
[1739665095448,0.03,195.12,195.1,26.04325172]
[1739665095631,0.03,195.12,195.11,12.63140319]
[1739665097357,0.03,195.12,195.11,26.04325172]
[1739665097546,0.03,195.12,195.11,31.16855172]
[1739665100369,0.03,195.12,195.11,32.68705172]
[1739665104033,1.0,195.21,195.15,20.0]
[1739665104239,1.0,195.21,195.19,12.63140319]
[1739665104472,1.0,195.2,195.16,13.41184853]
[1739665104768,1.0,195.2,195.16,33.41184853]
[1739665105181,1.0,195.22,195.16,33.41184853]
[1739665105354,1.0,195.21,195.19,12.63140319]
[1739665105754,1.0,195.21,195.17,93.81140319]
[1739665106169,1.0,195.21,195.18,13.41184853]
[1739665106865,1.0,195.21,195.18,18.53524853]
[1739665110257,1.0,195.19,195.17,86.3036]
[1739665110482,1.0,195.19,195.17,81.18]
[1739665110683,1.0,195.19,195.18,4.06]
[1739665111669,1.0,195.19,195.17,81.18]
[1739665111871,1.0,195.18,195.17,81.18]
[1739665112170,1.0,195.18,195.15,26.04325172]
[1739665112364,1.0,195.17,195.15,26.04325172]
[1739665113392,1.0,195.17,195.15,31.16735172]
[1739665114977,1.0,195.17,195.16,12.63140319]
[1739665115894,1.0,195.17,195.16,17.75540319]
[1739665116415,1.0,195.17,195.16,5.124]
[1739665116581,1.0,195.17,195.16,17.75540319]
[1739665117695,1.0,195.17,195.16,13.18817853]
[1739665118006,0.03,195.25,195.23,20.0]
[1739665118179,0.03,195.32,195.23,20.0]
[1739665118180,1.03,195.32,195.26,20.0]
[1739665118379,7.9791716,195.34,195.3,31.0]
[1739665118604,7.9791716,195.34,195.33,13.41184853]
[1739665118778,7.9791716,195.34,195.31,0.76783363]
[1739665118981,12.98294846,195.35,195.32,25.50658124]
[1739665119275,4.846e-05,195.35,195.34,21.47602706]
[1739665119613,4.467e-05,195.36,195.35,13.41184853]
[1739665119913,4.467e-05,195.36,195.35,21.47602706]
[1739665120087,0.03,195.41,195.39,18.52974853]
[1739665120294,0.03,195.41,195.4,21.47602706]
[1739665121291,1.03,195.41,195.4,21.47602706]
[1739665121512,1.03,195.41,195.4,51.47602706]
[1739665121682,1.03,195.41,195.4,55.97920313]
[1739665121877,0.03,195.41,195.4,55.97920313]
[1739665122086,1.0,195.44,195.4,80.43844692]
[1739665122293,1.0,195.44,195.43,12.5673546]
[1739665122513,1.0,195.47,195.43,55.97920313]
[1739665122694,1.0,195.47,195.46,12.5673546]
[1739665122998,1.0,195.47,195.46,36.46173618]
[1739665123212,1.0,195.48,195.46,23.04988765]
[1739665123395,1.0,195.48,195.47,12.5673546]
[1739665123592,12.5673546,195.54,195.47,26.97920313]
[1739665123781,12.5673546,195.54,195.48,12.5673546]
[1739665124107,12.5673546,195.54,195.47,26.97920313]
[1739665124282,12.5673546,195.53,195.47,37.46173618]
[1739665124477,12.5673546,195.53,195.47,11.48253305]
[1739665125007,12.5673546,195.52,195.48,10.48253305]
[1739665126115,12.5673546,195.52,195.51,31.48203775]
[1739665126684,12.5673546,195.52,195.51,34.97621543]
[1739665129107,12.5673546,195.52,195.51,31.48203775]
[1739665129312,17.6818546,195.52,195.51,31.48203775]
[1739665132533,17.6818546,195.52,195.47,1.0]
[1739665132703,12.5673546,195.5,195.45,1.0]
[1739665132900,12.5673546,195.5,195.46,1.0]
[1739665133607,12.5673546,195.49,195.44,1.0]
[1739665133821,12.5673546,195.49,195.46,1.0]
[1739665134035,12.5673546,195.5,195.47,1.0]
[1739665134331,17.6816546,195.53,195.47,1.0]
[1739665134699,12.5673546,195.52,195.47,1.0]
[1739665135330,17.6818546,195.52,195.47,1.0]
[1739665136042,12.5673546,195.51,195.47,1.0]
[1739665136335,17.6818546,195.52,195.47,1.0]
[1739665136933,5.1145,195.52,195.47,1.0]
[1739665137309,17.6818546,195.52,195.47,1.0]
[1739665137633,17.6818546,195.52,195.49,1.0]
[1739665137827,17.6818546,195.52,195.48,1.0]
[1739665138141,17.6818546,195.52,195.49,1.0]
[1739665138327,5.1145,195.52,195.5,1.0]
[1739665138949,5.1145,195.52,195.48,1.0]
[1739665139108,5.1145,195.52,195.5,1.0]
[1739665139935,12.5973546,195.53,195.51,1.0]
[1739665140311,17.7116546,195.53,195.49,1.0]
[1739665140508,12.5673546,195.5,195.47,0.063]
[1739665140736,12.5673546,195.5,195.47,1.063]
[1739665140935,12.5673546,195.48,195.47,0.063]
[1739665142018,17.6821546,195.51,195.47,1.063]
[1739665143442,12.5673546,195.5,195.47,1.063]
[1739665144244,0.03,195.53,195.52,1.0]
[1739665144558,12.5973546,195.53,195.48,1.0]
[1739665144758,12.5673546,195.52,195.5,1.0]
[1739665145253,12.5973546,195.53,195.51,1.0]
[1739665145432,12.5973546,195.53,195.5,1.0]
[1739665145947,12.5973546,195.53,195.49,1.0]
[1739665146127,12.5973546,195.53,195.5,1.0]
[1739665146326,12.5973546,195.53,195.47,20.063]
[1739665146327,12.5973546,195.53,195.51,1.0]
[1739665146544,12.5973546,195.53,195.5,1.0]
[1739665146846,12.5973546,195.53,195.48,1.0]
[1739665147561,12.5973546,195.53,195.49,1.0]
[1739665148755,12.5973546,195.53,195.5,1.0]
[1739665151667,8.06890458,195.53,195.5,1.0]
[1739665151839,8.03890458,195.52,195.5,1.0]
[1739665152162,8.03890458,195.52,195.49,1.0]
[1739665152469,8.03890458,195.52,195.5,1.0]
[1739665152961,8.03890458,195.52,195.47,5.1788]
[1739665152962,8.03890458,195.52,195.48,1.0]
[1739665153262,8.03890458,195.51,195.48,1.0]
[1739665153835,8.03890458,195.51,195.49,1.0]
[1739665154166,8.03890458,195.51,195.48,1.0]
[1739665154365,8.03890458,195.51,195.45,5.1162]
[1739665154366,1.0,195.38,195.26,24.19366178]
[1739665154564,8.03890458,195.32,195.29,30.0]
[1739665154742,9.26079579,195.32,195.29,30.0]
[1739665154937,5.1203,195.3,195.26,24.19366178]
[1739665155159,1.0,195.29,195.26,24.19366178]
[1739665155330,1.0,195.29,195.26,17.00522242]
[1739665155661,8.03890458,195.27,195.26,17.00522242]
[1739665155870,9.03890458,195.27,195.18,41.93013224]
[1739665156061,8.03890458,195.19,195.18,41.93013224]
[1739665156472,38.03890458,195.19,195.18,41.93013224]
[1739665156835,30.0,195.19,195.18,41.93013224]
[1739665157256,38.03890458,195.19,195.16,1.0]
[1739665157430,8.03890458,195.18,195.15,1.6566]
[1739665157638,30.0,195.17,195.16,1.0]
[1739665157854,12.60487542,195.18,195.16,1.0]
[1739665158758,12.60487542,195.19,195.16,1.0]
[1739665159779,12.60487542,195.19,195.15,1.6566]
[1739665159780,12.60487542,195.19,195.15,2.6566]
[1739665160468,12.60487542,195.2,195.16,1.0]
[1739665161166,12.60487542,195.21,195.16,1.0]
[1739665161666,12.60487542,195.2,195.13,17.06546378]
[1739665161867,12.60487542,195.19,195.13,17.06546378]
[1739665162577,12.60487542,195.2,195.13,17.06546378]
[1739665162773,12.60487542,195.2,195.16,0.063]
[1739665164588,12.60487542,195.21,195.16,0.063]
[1739665164788,12.60487542,195.2,195.16,0.063]
[1739665165895,12.60487542,195.21,195.16,0.063]
[1739665166199,12.60487542,195.19,195.16,0.063]
[1739665167907,12.60487542,195.2,195.16,0.063]
[1739665168511,12.60487542,195.21,195.16,0.063]
[1739665168709,12.60487542,195.22,195.16,0.063]
[1739665169086,12.604875,195.31,195.2,12.60487542]
[1739665169289,12.60487542,195.31,195.25,12.60487542]
[1739665169829,12.60487542,195.32,195.26,12.60487542]
[1739665170290,12.60487542,195.34,195.27,12.60487542]
[1739665170494,12.60487542,195.31,195.25,12.60487542]
[1739665170694,12.60487542,195.3,195.24,34.13817542]
[1739665171012,12.60487542,195.25,195.21,5.1226]
[1739665171215,12.60487542,195.24,195.21,5.1226]
[1739665171392,12.60487542,195.24,195.21,20.0]
[1739665171716,12.60487542,195.25,195.21,20.0]
[1739665172625,12.60487542,195.26,195.21,20.0]
[1739665172810,12.60487542,195.26,195.21,25.1226]
[1739665173421,12.60487542,195.26,195.21,20.0]
[1739665174125,12.60487542,195.27,195.21,25.1226]
[1739665174431,0.03,195.26,195.21,25.1226]
[1739665174929,0.03,195.26,195.21,37.72747542]
[1739665175841,0.03,195.26,195.21,25.1226]
[1739665177539,0.03,195.26,195.24,12.60487542]
[1739665177699,0.03,195.26,195.25,12.60487542]
[1739665178111,0.03,195.26,195.23,12.60487542]
[1739665178329,0.03,195.26,195.22,12.60487542]
[1739665178521,0.03,195.26,195.21,37.72747542]
[1739665178703,0.03,195.26,195.21,25.1226]
[1739665178900,12.60487542,195.25,195.18,12.60487542]
[1739665179509,12.60487542,195.25,195.19,5.1232]
[1739665180640,12.63487542,195.26,195.19,17.72807542]
[1739665181748,12.60487542,195.25,195.18,17.72827542]
[1739665182043,12.60487542,195.19,195.16,0.063]
[1739665182338,12.60487542,195.17,195.16,0.063]
[1739665184067,17.72857542,195.17,195.16,0.063]
[1739665185409,12.60487542,195.17,195.16,0.063]
[1739665186525,17.72857542,195.17,195.16,0.063]
[1739665191571,18.72857542,195.17,195.16,0.063]
[1739665193232,31.53787542,195.17,195.12,0.05259668]
[1739665193437,12.60487542,195.13,195.12,0.05259668]
[1739665194241,17.72957542,195.13,195.12,0.05259668]
[1739665195167,12.60487542,195.13,195.12,0.05259668]
[1739665196540,12.60487542,195.16,195.12,0.05259668]
[1739665196934,12.60487542,195.15,195.12,0.05259668]
[1739665197149,12.60487542,195.13,195.12,0.05259668]
[1739665200267,17.72957542,195.13,195.12,0.05259668]
[1739665204666,31.14142395,195.13,195.12,0.05259668]
[1739665205266,12.60487542,195.13,195.12,0.05259668]
[1739665205567,12.60487542,195.14,195.12,0.05259668]
[1739665205775,12.60487542,195.16,195.12,0.05259668]
[1739665205975,12.60487542,195.15,195.12,0.05259668]
[1739665207872,12.60487542,195.14,195.12,0.05259668]
[1739665208543,13.41184853,195.18,195.12,0.05259668]
[1739665208749,12.60487542,195.13,195.12,0.05259668]
[1739665208949,12.60487542,195.14,195.12,0.05259668]
[1739665209662,12.60487542,195.13,195.12,0.05259668]
[1739665210075,12.60487542,195.17,195.12,0.05259668]
[1739665210974,12.60487542,195.16,195.12,0.05259668]
[1739665211178,12.60487542,195.14,195.12,0.05259668]
[1739665211770,12.60487542,195.13,195.12,0.05259668]
[1739665212771,17.72957542,195.13,195.12,0.05259668]
[1739665212977,12.60487542,195.13,195.12,0.05259668]
[1739665214086,17.72957542,195.13,195.12,0.05259668]
[1739665219287,12.60487542,195.13,195.12,0.05259668]
[1739665221008,12.60487542,195.14,195.12,0.05259668]
[1739665221302,12.60487542,195.16,195.12,0.05259668]
[1739665223408,12.60487542,195.15,195.12,0.05259668]
[1739665224196,12.60487542,195.14,195.12,0.05259668]
[1739665225889,12.60487542,195.15,195.12,0.05259668]
[1739665227982,0.03,195.16,195.12,0.05259668]
[1739665227983,12.60487542,195.13,195.12,0.05259668]
[1739665229490,26.01672395,195.13,195.12,0.05259668]
[1739665230079,17.72957542,195.13,195.12,0.05259668]
[1739665234482,12.60487542,195.13,195.12,0.05259668]
[1739665235680,12.60487542,195.15,195.12,0.05259668]
[1739665236380,12.60487542,195.14,195.12,0.05259668]
[1739665236702,0.03,195.13,195.12,0.05259668]
[1739665238017,12.63487542,195.13,195.12,0.05259668]
[1739665240880,0.03,195.13,195.12,0.05259668]
[1739665247511,0.03,195.13,195.12,5.17759668]
[1739665248414,0.03,195.13,195.12,0.05259668]
[1739665251414,12.63487542,195.13,195.12,0.05259668]
[1739665253299,17.75957542,195.13,195.12,0.05259668]
[1739665259706,13.23020403,195.13,195.12,0.05259668]
[1739665263344,1.0,195.12,195.09,0.063]
[1739665263515,40.37752015,195.1,195.09,0.063]
[1739665263718,8.07550403,195.1,195.09,0.063]
[1739665264236,90.17550403,195.1,195.09,0.063]
[1739665264540,136.88936868,195.1,195.09,0.063]
[1739665264842,135.88936868,195.1,195.09,0.063]
[1739665265141,136.88936868,195.1,195.09,0.063]
[1739665265441,142.01486868,195.1,195.09,0.063]
[1739665266237,1.0,195.08,195.0,7.9476]
[1739665266443,8.07550403,195.01,194.99,0.063]
[1739665266939,8.07550403,195.02,194.99,0.063]
[1739665267331,8.07550403,195.03,194.99,0.063]
[1739665268240,8.07550403,195.04,194.99,0.063]
[1739665269635,8.07550403,195.03,194.99,0.063]
[1739665270146,8.07550403,195.04,194.99,0.063]
[1739665270342,90.17550403,195.05,194.99,8.13850403]
[1739665271353,90.17550403,195.05,194.99,0.063]
[1739665272152,90.17550403,195.05,194.99,5.1914]
[1739665273139,82.1,195.05,195.0,8.07550403]
[1739665273345,82.1,195.05,194.99,13.26690403]
[1739665277758,8.07550403,195.08,195.01,8.07550403]
[1739665278262,8.07550403,195.08,195.01,13.20330403]
[1739665278429,8.07550403,195.06,195.01,5.1278]
[1739665279455,8.07550403,195.06,194.99,8.13850403]
[1739665279648,8.07550403,195.06,195.0,5.1282]
[1739665280353,8.07550403,195.07,195.0,13.20370403]
[1739665282053,8.07550403,195.06,195.01,0.063]
[1739665282259,8.07550403,195.05,195.01,0.063]
[1739665283659,8.07550403,195.06,195.01,0.063]
[1739665284560,8.07550403,195.03,195.01,0.063]
[1739665284861,8.07550403,195.04,195.01,0.063]
[1739665285030,8.07550403,195.06,195.01,0.063]
[1739665285957,8.07550403,195.07,195.01,0.063]
[1739665286162,90.20550403,195.09,195.03,8.07550403]
[1739665286338,0.03,195.09,195.03,8.07550403]
[1739665286954,0.03,195.09,195.04,8.07550403]
[1739665288462,0.03,195.09,195.05,5.1268]
[1739665295735,8.10550403,195.09,195.03,14.21420403]
[1739665296063,8.07550403,195.08,195.03,11.2659]
[1739665296567,8.10550403,195.09,195.03,19.34140403]
[1739665298067,0.03,195.09,195.03,19.34140403]
[1739665302947,0.03,195.09,195.05,5.1268]
[1739665303356,0.03,195.09,195.04,13.20250403]
[1739665305872,0.03,195.09,195.04,5.127]
[1739665306673,8.07550403,195.08,195.03,5.1273]
[1739665306878,8.07550403,195.07,195.03,5.1273]
[1739665307078,8.07550403,195.07,195.04,0.063]